fUSD/lending_fUSD_20251119
["ID","MTS","AMOUNT","RATE_DAILY","PERIOD"]
[394392643,1763523728902,500.0,0.00041821,120]
[394392646,1763523729510,500.0,0.00041821,120]
[394392649,1763523730135,500.0,0.00041821,120]
[394392652,1763523730743,500.0,0.00041821,120]
[394392654,1763523731364,500.0,0.00041821,120]
[394392658,1763523732062,500.0,0.00041821,120]
[394392669,1763523788150,1177.01544705,0.00041821,120]
[394392688,1763524125501,2040.25479982,0.00041821,30]
[394392732,1763524231836,-102.50492494,0.00020412,2]
[394392734,1763524231846,-174.33194221,0.00029379,2]
[394392735,1763524231858,-229.18313285,0.00029409,2]
[394392736,1763524231890,-421.8679983,0.00029409,2]
[394392737,1763524231903,-548.94886885,0.00029409,2]
[394392738,1763524231914,-1865.05556967,0.0002941,2]
[394392739,1763524231926,-949.15632863,0.0002941,2]
[394392740,1763524231939,-373.2980954,0.0002941,2]
[394392741,1763524231952,-1216.353793,0.0002941,2]
[394392742,1763524231968,-1182.08953082,0.0002941,2]
[394392743,1763524231980,-1865.751495,0.0002941,2]
[394392744,1763524231990,-500.0,0.00029479,2]
[394392745,1763524232000,-160.97,0.00031064,2]
[394392746,1763524232011,-300.0,0.00031669,3]
[394392747,1763524232020,-300.0,0.0003167,3]
[394392748,1763524232030,-500.0,0.00031671,2]
[394392749,1763524232040,-484.0,0.00033479,2]
[394392750,1763524232051,-174.3319422,0.00034639,2]
[394392751,1763524232062,-250.0,0.00037488,2]
[394392752,1763524232073,-161.10398527,0.00037627,7]
[394392753,1763524232083,-4227.95,0.00037973,2]
[394392754,1763524232094,-1852.42,0.00037982,2]
[394392755,1763524232106,-268.8,0.00039041,30]
[394392756,1763524232117,-153.54339754,0.00039207,32]
[394392757,1763524232127,-314.0,0.00039362,2]
[394392758,1763524232138,-1055.53,0.00039474,120]
[394392759,1763524232148,-500.0,0.00039539,2]
[394392760,1763524232158,-1436.93,0.00039594,2]
[394392761,1763524232169,-2751.0,0.00039655,120]
[394392762,1763524232179,-174.3319422,0.00039899,2]
[394392763,1763524232190,-2875.93160348,0.00039899,2]
[394392764,1763524232200,-1000.0,0.000399,2]
[394392765,1763524232210,-443.81982111,0.00039973,5]
[394392766,1763524232221,-500.0,0.00039973,5]
[394392767,1763524232231,-500.0,0.00039989,31]
[394392768,1763524232242,-538.51652493,0.00039989,31]
[394392769,1763524232253,-293.38389324,0.00039989,2]
[394392770,1763524232263,-500.0,0.00039989,31]
[394392771,1763524232273,-500.0,0.00039989,31]
[394392772,1763524232283,-500.0,0.00039989,31]
[394392773,1763524232293,-500.0,0.00039989,31]
[394392774,1763524232303,-500.0,0.00039989,31]
[394392775,1763524232313,-500.0,0.00039989,31]
[394392776,1763524232323,-500.0,0.00039989,31]
[394392777,1763524232333,-500.0,0.00039989,31]
[394392778,1763524232343,-500.0,0.00039989,31]
[394392779,1763524232354,-500.0,0.00039989,31]
[394392780,1763524232364,-500.0,0.00039989,31]
[394392781,1763524232375,-500.0,0.00039989,31]
[394392782,1763524232385,-500.0,0.00039989,31]
[394392783,1763524232395,-500.0,0.00039989,31]
[394392784,1763524232405,-500.0,0.00039989,31]
[394392785,1763524232416,-500.0,0.00039989,31]
[394392786,1763524232426,-500.0,0.00039989,31]
[394392787,1763524232436,-500.0,0.00039989,31]
[394392788,1763524232446,-500.0,0.00039989,31]
[394392789,1763524232456,-500.0,0.00039989,31]
[394392790,1763524232467,-500.0,0.00039989,31]
[394392791,1763524232477,-500.0,0.00039989,31]
[394392792,1763524232487,-500.0,0.00039989,31]
[394392793,1763524232498,-500.0,0.00039989,31]
[394392794,1763524232508,-500.0,0.00039989,31]
[394392795,1763524232519,-500.0,0.00039989,31]
[394392796,1763524232529,-500.0,0.00039989,31]
[394392797,1763524232539,-500.0,0.00039989,31]
[394392798,1763524232550,-500.0,0.00039989,31]
[394392799,1763524232560,-500.0,0.00039989,31]
[394392800,1763524232571,-500.0,0.00039989,31]
[394392801,1763524232581,-500.0,0.00039989,31]
[394392802,1763524232591,-500.0,0.00039989,31]
[394392803,1763524232604,-500.0,0.00039989,31]
[394392804,1763524232617,-500.0,0.00039989,31]
[394392805,1763524232628,-500.0,0.00039989,31]
[394392806,1763524232638,-500.0,0.00039989,31]
[394392807,1763524232851,-500.0,0.00039989,31]
[394392808,1763524232866,-500.0,0.00039989,31]
[394392809,1763524232875,-500.0,0.00039989,31]
[394392810,1763524232885,-500.0,0.00039989,31]
[394392811,1763524232895,-500.0,0.00039989,31]
[394392812,1763524232903,-500.0,0.00039989,31]
[394392813,1763524232913,-500.0,0.00039989,31]
[394392814,1763524232922,-500.0,0.00039989,31]
[394392815,1763524232932,-500.0,0.00039989,31]
[394392816,1763524232941,-500.0,0.00039989,31]
[394392817,1763524232951,-500.0,0.00039989,31]
[394392818,1763524232960,-500.0,0.00039989,31]
[394392819,1763524232970,-500.0,0.00039989,31]
[394392820,1763524232979,-500.0,0.00039989,31]
[394392821,1763524232988,-500.0,0.00039989,31]
[394392822,1763524232998,-500.0,0.00039989,31]
[394392823,1763524233008,-500.0,0.00039989,31]
[394392824,1763524233017,-373.61716024,0.00039989,31]
[394392825,1763524233027,-500.0,0.00039989,31]
[394392826,1763524233036,-500.0,0.00039989,31]
[394392827,1763524233046,-500.0,0.00039989,31]
[394392828,1763524233055,-500.0,0.00039989,31]
[394392829,1763524233065,-500.0,0.00039989,31]
[394392830,1763524233075,-500.0,0.00039989,31]
[394392831,1763524233084,-500.0,0.00039989,31]
[394392832,1763524233094,-500.0,0.00039989,31]
[394392833,1763524233105,-500.0,0.00039989,31]
[394392834,1763524233114,-500.0,0.00039989,31]
[394392835,1763524233124,-500.0,0.00039989,31]
[394392837,1763524233134,-500.0,0.00039989,31]
[394392838,1763524233143,-500.0,0.00039989,31]
[394392839,1763524233152,-500.0,0.00039989,31]
[394392840,1763524233162,-500.0,0.00039989,31]
[394392841,1763524233172,-500.0,0.00039989,31]
[394392842,1763524233182,-500.0,0.00039989,31]
[394392843,1763524233192,-500.0,0.00039989,31]
[394392844,1763524233202,-500.0,0.00039989,31]
[394392845,1763524233211,-400.0,0.00039989,31]
[394392846,1763524233220,-500.0,0.00039989,31]
[394392847,1763524233229,-500.0,0.00039989,31]
[394392848,1763524233239,-500.0,0.00039989,31]
[394392849,1763524233247,-500.0,0.00039989,31]
[394392850,1763524233256,-500.0,0.00039989,31]
[394392851,1763524233266,-6040.04953102,0.0003999,4]
[394392852,1763524233282,-793.30310123,0.0003999,4]
[394392853,1763524233293,-578.27874155,0.0003999,4]
[394392854,1763524233304,-571.40658039,0.0003999,4]
[394392855,1763524233315,-5455.12,0.0003999,4]
[394392856,1763524233326,-922.41530248,0.0003999,4]
[394392858,1763524237889,-2554.10818984,0.0003999,4]
[394392859,1763524237995,-287.33,0.0003999,4]
[394392860,1763524238049,-212687.66395749,0.0003999,4]
[394392863,1763524238059,-172549.129058,0.0003999,4]
[394392865,1763524238069,-203.61955084,0.0003999,7]
[394392867,1763524238078,-150.58,0.0003999,2]
[394392868,1763524238087,-251.59149769,0.00039999,31]
[394392871,1763524238097,-503.10498233,0.00039999,31]
[394392873,1763524238107,-240.16179083,0.00039999,31]
[394392875,1763524238117,-500.0,0.00039999,2]
[394392876,1763524238126,-500.0,0.00039999,2]
[394392878,1763524238136,-500.0,0.00039999,2]
[394392880,1763524238145,-635.95,0.0004,120]
[394392882,1763524238155,-270.38,0.0004,120]
[394392884,1763524238164,-192.05,0.0004,120]
[394392886,1763524238174,-1083283.27074315,0.0004,2]
[394392888,1763524238183,-156.58,0.0004,120]
[394392890,1763524238192,-219.85,0.0004,120]
[394392892,1763524238202,-2875.93160345,0.00040101,15]
[394392894,1763524238212,-162.91919545,0.00040164,30]
[394392896,1763524238221,-3834.42509018,0.00040199,4]
[394392898,1763524238231,-1146.0,0.00040209,7]
[394392901,1763524238241,-2875.93160345,0.00040304,15]
[394392903,1763524238250,-1467.7429,0.00040319,30]
[394392905,1763524238259,-219.01993209,0.00040322,2]
[394392907,1763524238268,-170.9616273,0.00040463,35]
[394392909,1763524238278,-153.0,0.00040467,120]
[394392911,1763524238287,-153.0,0.00040467,120]
[394392913,1763524238296,-153.0,0.00040467,120]
[394392915,1763524238306,-153.0,0.00040467,120]
[394392917,1763524238315,-153.0,0.00040467,120]
[394392919,1763524238324,-153.0,0.00040467,120]
[394392921,1763524238335,-153.0,0.00040467,120]
[394392924,1763524238346,-153.0,0.00040467,120]
[394392925,1763524238357,-153.0,0.00040467,120]
[394392928,1763524238367,-153.0,0.00040467,120]
[394392930,1763524238379,-153.0,0.00040467,120]
[394392932,1763524238389,-153.0,0.00040467,120]
[394392933,1763524238399,-153.0,0.00040467,120]
[394392935,1763524238409,-153.0,0.00040467,120]
[394392936,1763524238418,-168.0,0.0004048,7]
[394392937,1763524238427,-3834.42509018,0.0004049,4]
[394392938,1763524238437,-941.168,0.00040499,58]
[394392939,1763524238447,-303.434,0.00040499,58]
[394392940,1763524238456,-1999.99,0.000405,2]
[394392941,1763524238466,-1999.99,0.000405,2]
[394392942,1763524238476,-1999.99,0.000405,2]
[394392943,1763524238486,-1999.99,0.000405,2]
[394392944,1763524238495,-2029.12,0.000405,2]
[394392945,1763524238504,-1492.9074485,0.00040504,2]
[394392946,1763524238514,-2875.93160345,0.00040506,15]
[394392947,1763524238524,-1146.0,0.00040549,2]
[394392948,1763524238535,-1336.36835663,0.00040566,2]
[394392949,1763524238545,-162.91919545,0.00040603,30]
[394392950,1763524238555,-162.91919545,0.00040603,30]
[394392951,1763524238565,-314.0,0.00040635,7]
[394392952,1763524238575,-204.0,0.000407,7]
[394392953,1763524238585,-2875.93160345,0.00040709,15]
[394392954,1763524238596,-219.01993209,0.00040719,2]
[394392955,1763524238613,-1492.9074485,0.00040801,2]
[394392956,1763524238626,-490.54,0.00040849,2]
[394392957,1763524238638,-719.03,0.00040849,2]
[394392958,1763524238648,-3834.42509018,0.00040861,4]
[394392959,1763524238658,-1492.9074485,0.00040872,2]
[394392960,1763524238668,-2500.0,0.0004089,2]
[394392961,1763524238678,-3834.42509018,0.00040925,4]
[394392962,1763524238688,-153.0,0.00040935,120]
[394392963,1763524238699,-153.0,0.00040935,120]
[394392964,1763524238709,-153.0,0.00040935,120]
[394392965,1763524238718,-153.0,0.00040935,120]
[394392966,1763524238728,-153.0,0.00040935,120]
[394392967,1763524238738,-153.0,0.00040935,120]
[394392968,1763524238747,-153.0,0.00040935,120]
[394392969,1763524238757,-153.0,0.00040935,120]
[394392970,1763524238767,-153.0,0.00040935,120]
[394392971,1763524238776,-153.0,0.00040935,120]
[394392972,1763524238786,-153.0,0.00040935,120]
[394392973,1763524238795,-153.0,0.00040935,120]
[394392974,1763524238805,-153.0,0.00040935,120]
[394392975,1763524238815,-153.0,0.00040935,120]
[394392976,1763524238824,-153.0,0.00040935,120]
[394392977,1763524238834,-153.0,0.00040935,120]
[394392978,1763524238843,-153.0,0.00040935,120]
[394392979,1763524238853,-153.0,0.00040935,120]
[394392980,1763524238863,-881.39224307,0.00040967,120]
[394392981,1763524238873,-345.15057782,0.00040973,5]
[394392982,1763524238882,-3834.42509018,0.0004098,4]
[394392983,1763524238892,-561.77,0.00040986,2]
[394392984,1763524238902,-151.12,0.00040986,2]
[394392985,1763524238916,-150.0,0.00040986,2]
[394392986,1763524238926,-1209.94,0.00040986,2]
[394392987,1763524238935,-177.45,0.00040986,2]
[394392988,1763524238945,-205.28,0.00040986,2]
[394392989,1763524238955,-301.14,0.00040986,2]
[394392990,1763524238964,-277.46,0.00040986,2]
[394392991,1763524238974,-416.99,0.00040986,2]
[394392992,1763524238983,-506.61575954,0.00040989,120]
[394392993,1763524238992,-500.0,0.00040989,7]
[394392994,1763524239002,-170.21,0.00040999,30]
[394392995,1763524239012,-500.0,0.00040999,7]
[394392996,1763524239023,-388.53810038,0.00040999,7]
[394392997,1763524239032,-181.41586634,0.00041,2]
[394392998,1763524239042,-204.0,0.00041029,2]
[394392999,1763524239051,-219.01993209,0.00041065,2]
[394393000,1763524239060,-500.0,0.00041095,2]
[394393001,1763524239070,-607.84,0.00041095,2]
[394393002,1763524239079,-502.58141552,0.00041095,2]
[394393003,1763524239088,-3730.28,0.00041095,2]
[394393004,1763524239098,-500.0,0.00041095,2]
[394393005,1763524239107,-300.0,0.00041095,2]
[394393006,1763524239117,-300.99786132,0.00041095,2]
[394393007,1763524239127,-1146.0,0.00041136,120]
[394393008,1763524239136,-219.01993209,0.00041141,2]
[394393009,1763524239147,-170.21,0.00041273,30]
[394393010,1763524239156,-1492.9074485,0.00041316,2]
[394393011,1763524239166,-607.84,0.00041369,2]
[394393012,1763524239176,-3730.28,0.00041369,2]
[394393013,1763524239186,-300.0,0.00041369,2]
[394393014,1763524239196,-1146.0,0.0004143,2]
[394393015,1763524239206,-219.01993211,0.00041455,2]
[394393016,1763524239216,-1180.33783687,0.00041473,120]
[394393017,1763524239226,-168.0,0.00041481,2]
[394393018,1763524239235,-151.0,0.00041547,120]
[394393019,1763524239245,-151.0,0.00041547,120]
[394393020,1763524239255,-151.0,0.00041547,120]
[394393021,1763524239264,-151.0,0.00041547,120]
[394393022,1763524239273,-151.0,0.00041547,120]
[394393023,1763524239282,-151.0,0.00041547,120]
[394393024,1763524239292,-151.0,0.00041547,120]
[394393025,1763524239300,-151.0,0.00041547,120]
[394393026,1763524239310,-151.0,0.00041547,120]
[394393027,1763524239320,-151.0,0.00041547,120]
[394393028,1763524239330,-151.0,0.00041547,120]
[394393029,1763524239340,-151.0,0.00041547,120]
[394393030,1763524239350,-151.0,0.00041547,120]
[394393031,1763524239361,-151.0,0.00041547,120]
[394393032,1763524239371,-151.0,0.00041547,120]
[394393033,1763524239382,-151.0,0.00041547,120]
[394393034,1763524239392,-156.937698,0.00041547,120]
[394393035,1763524239402,-151.0,0.00041547,120]
[394393036,1763524239413,-151.0,0.00041547,120]
[394393037,1763524239423,-151.0,0.00041547,120]
[394393038,1763524239432,-151.0,0.00041547,120]
[394393039,1763524239442,-151.0,0.00041547,120]
[394393040,1763524239452,-151.0,0.00041547,120]
[394393041,1763524239462,-151.0,0.00041547,120]
[394393042,1763524239472,-83918.75525226,0.00041547,2]
[394393043,1763524239944,-10698.61858283,0.00041547,2]
[394393044,1763524239996,-60677.32019388,0.00041547,2]
[394393045,1763524240102,-460.035,0.00041547,2]
[394393046,1763524240114,-307.47310962,0.00041547,2]
[394393047,1763524240314,-5736.73580021,0.00041547,2]
[394393055,1763524243096,-1012.85979988,0.00040911,15]
[394393056,1763524243128,-220.8168,0.00040911,15]
[394393058,1763524243248,-2.89444312,0.00040911,15]
[394393059,1763524243260,-1130.40073013,0.00040911,15]
[394393060,1763524243271,-508.95983032,0.00040911,15]
[394393061,1763524243281,-550.51,0.00040986,2]
[394393062,1763524243290,-279.42042325,0.00040986,2]
[394393063,1763524243301,-930.51957675,0.00040986,2]
[394393064,1763524243311,-169.55,0.00040986,2]
[394393065,1763524243319,-177.45,0.00040986,2]
[394393066,1763524243328,-151.0,0.00041547,14]
[394393067,1763524243338,-3172.53042325,0.00041547,2]
[394393068,1763524243349,-354.54970031,0.00041547,2]
[394393069,1763524243573,-416.99,0.00040986,2]
[394393070,1763524243583,-150.0,0.00040986,2]
[394393071,1763524243592,-2368.01493739,0.00041547,2]
[394393075,1763524246247,-500.0,0.00039989,31]
[394393076,1763524246258,-520.74992148,0.00039989,31]
[394393077,1763524246267,-1335.49583529,0.00041114,15]
[394393078,1763524246279,-1540.43576816,0.00041114,15]
[394393079,1763524246288,-151.0,0.00041547,14]
[394393080,1763524246297,-151.0,0.00041547,14]
[394393081,1763524246306,-1029.72194109,0.00041547,2]
[394393082,1763524246352,-713.47591477,0.00041547,2]
[394393083,1763524246366,-1541.76364472,0.00041547,2]
[394393084,1763524246514,-993.0,0.00041547,2]
[394393085,1763524246525,-2384.74194764,0.00041547,2]
[394393086,1763524246536,-7934.06221524,0.00041547,2]
[394393087,1763524246546,-12150.92677071,0.00041547,2]
[394393088,1763524246558,-13341.2818262,0.00041547,2]
[394393148,1763524413649,500.0,0.00041821,120]
[394393149,1763524413881,324.44741751,0.00041821,120]
[394393154,1763524456026,-250.29047238,0.00036722,2]
[394393155,1763524456059,-400.0,0.00036821,2]
[394393156,1763524456080,-349.70952762,0.00036822,30]
[394393157,1763524459935,500.0,0.00041821,120]
[394393158,1763524460173,500.0,0.00041821,120]
[394393159,1763524460534,342.63739843,0.00041821,120]
[394393165,1763524545096,153.544049,0.00041821,120]
[394393166,1763524546004,153.435485,0.00041821,120]
[394393168,1763524546060,153.544049,0.00041821,120]
[394393169,1763524546419,153.435485,0.00041821,120]
[394393170,1763524546477,153.544049,0.00041821,120]
[394393171,1763524546785,153.435485,0.00041821,120]
[394393172,1763524546837,153.544049,0.00041821,120]
[394393173,1763524547184,153.435485,0.00041821,120]
[394393174,1763524547533,153.435485,0.00041821,120]
[394393175,1763524547944,153.435485,0.00041821,120]
[394393176,1763524548290,153.435485,0.00041821,120]
[394393177,1763524548622,153.435485,0.00041821,120]
[394393178,1763524754686,500.0,0.00041821,120]
[394393179,1763524754941,500.0,0.00041821,120]
[394393180,1763524755370,376.31373766,0.00041821,120]
[394393382,1763525006479,151.04621847,0.00041822,120]
[394393385,1763525094935,160.649175,0.00041822,120]
[394393388,1763525226700,695.0,0.00022,30]
[394393393,1763525427580,160.649175,0.00041822,120]
[394393401,1763525432068,-197.18361273,0.00036821,2]
[394393402,1763525432078,-165.86020811,0.00036821,3]
[394393403,1763525432124,-397.62,0.00036821,3]
[394393404,1763525432135,-252.51979189,0.00036821,3]
[394393405,1763525432145,-172.76276398,0.00036822,30]
[394393406,1763525432158,-111.54147063,0.00036822,30]
[394393407,1763525432169,-388.45852937,0.00036822,30]
[394393408,1763525432178,-436.59290823,0.00036822,30]
[394393409,1763525432187,-500.0,0.00036822,30]
[394393410,1763525432196,-382.49753296,0.00036822,30]
[394393411,1763525432233,-117.50246704,0.00036822,30]
[394393412,1763525432242,-3301.08,0.00037236,2]
[394393413,1763525432251,-345.15057782,0.000373,5]
[394393414,1763525432260,-331.58146339,0.000373,5]
[394393415,1763525432289,-170.21796906,0.000373,5]
[394393416,1763525432299,-557.0579094,0.000373,5]
[394393417,1763525432308,-905.67282599,0.00037624,30]
[394393418,1763525432318,-904.66574711,0.00037624,30]
[394393419,1763525432327,-944.4782212,0.00037624,30]
[394393420,1763525432336,-967.45459189,0.00037624,30]
[394393421,1763525432346,-500.0,0.00037624,30]
[394393422,1763525432355,-500.0,0.00037624,30]
[394393423,1763525432364,-166.66,0.00037875,30]
[394393424,1763525432374,-166.66,0.00038673,30]
[394393425,1763525432383,-166.66,0.0003947,30]
[394393426,1763525432396,-152.0,0.0003976,3]
[394393427,1763525432405,-1944.46,0.0003978,2]
[394393428,1763525432415,-158.6,0.00039794,2]
[394393429,1763525432424,-204.4,0.00039866,2]
[394393430,1763525432434,-164.79,0.000399,31]
[394393431,1763525432443,-20000.02,0.00039948,2]
[394393432,1763525432453,-219.84,0.0004,120]
[394393433,1763525432463,-156.57,0.0004,120]
[394393434,1763525432479,-500.0,0.0004005,2]
[394393435,1763525432488,-200.0,0.00040083,2]
[394393437,1763525432497,-299.99,0.00040083,120]
[394393439,1763525432507,-150.0,0.00040164,2]
[394393441,1763525432516,-177.39,0.00040164,2]
[394393443,1763525432525,-219.01993209,0.00040198,2]
[394393444,1763525432534,-1492.9074485,0.00040229,2]
[394393445,1763525432543,-166.66,0.00040268,30]
[394393446,1763525432552,-1000.0,0.0004027,2]
[394393447,1763525432561,-1492.9074485,0.00040283,2]
[394393448,1763525432570,-219.01993209,0.00040284,2]
[394393449,1763525432579,-1467.7429,0.00040319,30]
[394393450,1763525432588,-999.0,0.00040335,3]
[394393451,1763525432600,-5000.0,0.000404,120]
[394393452,1763525432610,-502.0,0.00040411,2]
[394393453,1763525432619,-2242.75,0.00040427,2]
[394393454,1763525432628,-150.0,0.00040433,2]
[394393455,1763525432641,-2029.11,0.000405,2]
[394393456,1763525432650,-1999.98,0.000405,2]
[394393457,1763525432659,-1999.98,0.000405,2]
[394393458,1763525432668,-1999.98,0.000405,2]
[394393459,1763525432677,-1999.98,0.000405,2]
[394393460,1763525432686,-941.168,0.000405,58]
[394393461,1763525432695,-303.434,0.000405,58]
[394393462,1763525432704,-153.0,0.00040514,120]
[394393464,1763525432712,-153.0,0.00040514,120]
[394393466,1763525432722,-153.0,0.00040514,120]
[394393468,1763525432731,-153.0,0.00040514,120]
[394393470,1763525432740,-153.0,0.00040514,120]
[394393472,1763525432750,-153.0,0.00040514,120]
[394393474,1763525432759,-153.0,0.00040514,120]
[394393476,1763525432769,-153.0,0.00040514,120]
[394393478,1763525432778,-153.0,0.00040514,120]
[394393480,1763525432787,-153.0,0.00040514,120]
[394393482,1763525432797,-153.0,0.00040514,120]
[394393484,1763525432806,-153.0,0.00040514,120]
[394393486,1763525432817,-153.0,0.00040514,120]
[394393488,1763525432826,-153.0,0.00040514,120]
[394393490,1763525432835,-153.0,0.00040514,120]
[394393492,1763525432844,-153.0,0.00040514,120]
[394393494,1763525432854,-1836.36835663,0.00040566,2]
[394393496,1763525432863,-162.91919544,0.00040603,30]
[394393498,1763525432874,-162.91919545,0.00040603,30]
[394393500,1763525432883,-162.91919545,0.00040603,30]
[394393502,1763525432892,-162.91919545,0.00040603,30]
[394393504,1763525432901,-200.0,0.00040638,5]
[394393506,1763525432911,-219.01993209,0.00040648,2]
[394393508,1763525432921,-5066.7,0.00040739,2]
[394393510,1763525432930,-1492.9074485,0.00040747,2]
[394393513,1763525432940,-503.34564414,0.00040775,5]
[394393514,1763525432953,-502.11222657,0.00040775,5]
[394393515,1763525432962,-169.55,0.00040778,2]
[394393516,1763525432971,-550.51,0.00040778,2]
[394393517,1763525432979,-150.0,0.00040778,2]
[394393518,1763525432989,-150.0,0.00040778,2]
[394393519,1763525432998,-177.45,0.00040778,2]
[394393520,1763525433011,-416.99,0.00040778,2]
[394393521,1763525433020,-1209.94,0.00040778,2]
[394393522,1763525433030,-414.64306849,0.00040786,5]
[394393523,1763525433039,-1500.0,0.000408,14]
[394393524,1763525433048,-2000.0,0.00040821,120]
[394393525,1763525433057,-719.03,0.00040849,2]
[394393526,1763525433066,-490.54,0.00040849,2]
[394393527,1763525433075,-1492.9074485,0.00040897,2]
[394393528,1763525433084,-3000.0,0.000409,14]
[394393529,1763525433094,-223.08,0.00040902,30]
[394393530,1763525433103,-153.0,0.00040902,120]
[394393531,1763525433112,-153.0,0.00040902,120]
[394393532,1763525433123,-153.0,0.00040902,120]
[394393533,1763525433133,-153.0,0.00040902,120]
[394393534,1763525433143,-153.0,0.00040902,120]
[394393535,1763525433153,-153.0,0.00040902,120]
[394393536,1763525433162,-153.0,0.00040902,120]
[394393537,1763525433172,-153.0,0.00040902,120]
[394393538,1763525433181,-153.0,0.00040902,120]
[394393539,1763525433191,-153.0,0.00040902,120]
[394393540,1763525433210,-153.0,0.00040902,120]
[394393541,1763525433220,-153.0,0.00040902,120]
[394393542,1763525433230,-153.0,0.00040902,120]
[394393543,1763525433240,-153.0,0.00040902,120]
[394393544,1763525433250,-153.0,0.00040902,120]
[394393545,1763525433259,-153.0,0.00040902,120]
[394393546,1763525433269,-153.0,0.00040902,120]
[394393547,1763525433279,-153.0,0.00040902,120]
[394393548,1763525433288,-153.0,0.00040902,120]
[394393549,1763525433298,-881.39224307,0.00040967,120]
[394393550,1763525433308,-1209.94,0.00040986,2]
[394393551,1763525433317,-561.77,0.00040986,2]
[394393552,1763525433327,-151.12,0.00040986,2]
[394393553,1763525433336,-150.0,0.00040986,2]
[394393554,1763525433350,-301.14,0.00040986,2]
[394393555,1763525433360,-205.28,0.00040986,2]
[394393556,1763525433369,-277.46,0.00040986,2]
[394393557,1763525433378,-416.99,0.00040986,2]
[394393558,1763525433387,-177.45,0.00040986,2]
[394393559,1763525433396,-219.01993209,0.00040998,2]
[394393560,1763525433405,-181.41586634,0.00041,2]
[394393561,1763525433414,-162.61,0.00041062,2]
[394393562,1763525433423,-166.66,0.00041065,30]
[394393563,1763525433433,-531.8591994,0.000411,15]
[394393564,1763525433447,-3968.1408006,0.000411,15]
[394393565,1763525433457,-593.89617414,0.000411,2]
[394393566,1763525433467,-2000.0,0.000411,2]
[394393567,1763525433476,-168.0,0.00041173,2]
[394393568,1763525433485,-223.08,0.00041176,30]
[394393569,1763525433495,-805.0,0.00041178,30]
[394393570,1763525433504,-6000.0,0.000412,15]
[394393571,1763525433513,-7500.0,0.000413,15]
[394393572,1763525433522,-7060.63498907,0.00041318,15]
[394393573,1763525433531,-2452.80792532,0.00041318,15]
[394393574,1763525433541,-5328.3868,0.00041318,2]
[394393575,1763525433550,-2500.0,0.00041318,2]
[394393576,1763525433559,-405.29007824,0.00041323,10]
[394393577,1763525433573,-1492.90744854,0.00041345,2]
[394393578,1763525433582,-266.0,0.00041349,2]
[394393579,1763525433591,-204.4,0.00041361,2]
[394393580,1763525433601,-7060.63498904,0.00041363,15]
[394393581,1763525433610,-2452.80792524,0.00041363,15]
[394393582,1763525433620,-219.01993211,0.00041364,2]
[394393583,1763525433629,-533.12509319,0.00041373,10]
[394393584,1763525433638,-500.0,0.00041373,10]
[394393585,1763525433647,-266.0,0.00041387,7]
[394393586,1763525433657,-1500.0,0.000414,15]
[394393587,1763525433666,-1189.27621,0.000414,9]
[394393588,1763525433676,-7060.63498904,0.00041408,15]
[394393589,1763525433685,-2452.80792524,0.00041408,15]
[394393590,1763525433694,-753.25,0.00041408,30]